bitfinex-derivatives/quotes_SOLF0:USTF0_20260213
["timestamp","ask_amount","ask_price","bid_price","bid_amount"]
[1770995653585,16.86499442,82.419,82.345,18.62810444]
[1770995653768,16.86499442,82.397,82.325,18.62810444]
[1770995654173,16.86499442,82.397,82.327,10.939]
[1770995654369,27.8111292,82.395,82.327,10.939]
[1770995654570,16.8809292,82.395,82.327,10.939]
[1770995654773,16.8809292,82.395,82.29,9.07321514]
[1770995654774,16.8809292,82.395,82.317,10.9404]
[1770995654977,9.07321514,82.38,82.317,10.9404]
[1770995655181,16.8809292,82.376,82.303,18.62810444]
[1770995655381,16.8809292,82.376,82.307,10.9416]
[1770995655571,16.8809292,82.376,82.303,18.62810444]
[1770995655774,16.8809292,82.376,82.324,10.9394]
[1770995656482,242.58,82.466,82.272,261.42044299]
[1770995656483,9.07321514,82.4,82.331,18.62810444]
[1770995656782,16.86514507,82.389,82.307,18.62810444]
[1770995656982,10.9329,82.374,82.311,10.9412]
[1770995657178,16.86514507,82.389,82.311,10.9412]
[1770995657372,9.07321514,82.37,82.311,10.9412]
[1770995657977,16.86514507,82.389,82.307,18.62810444]
[1770995658178,17.44153299,82.409,82.311,18.62810444]
[1770995658584,10.9306,82.391,82.311,18.62810444]
[1770995658888,146.3,82.419,82.311,18.62810444]
[1770995658889,17.4419879,82.389,82.311,18.62810444]
[1770995659377,17.7018639,82.409,82.311,18.62810444]
[1770995660378,10.9308,82.39,82.311,18.62810444]
[1770995660584,17.71719829,82.408,82.311,18.62810444]
[1770995661084,10.9305,82.392,82.311,18.62810444]
[1770995661489,10.9317,82.383,82.326,10.9392]
[1770995661686,18.12594027,82.389,82.311,18.62810444]
[1770995661883,173.65915541,82.41,82.311,18.62810444]
[1770995662079,18.12594027,82.409,82.345,10.9366]
[1770995662283,264.4215,82.466,82.346,19.39230625]
[1770995662284,18.1395383,82.429,82.346,19.39230625]
[1770995662785,18.1395383,82.429,82.361,10.9345]
[1770995662985,18.1395383,82.429,82.346,19.39230625]
[1770995663291,18.15609154,82.416,82.36,10.9346]
[1770995663481,18.15609154,82.416,82.346,19.39230625]
[1770995663686,9.09603988,82.43,82.376,10.9325]
[1770995663687,10.9256,82.429,82.376,10.9325]
[1770995663990,18.20672403,82.428,82.351,19.39230625]
[1770995664380,18.20672403,82.428,82.374,10.9328]
[1770995665286,18.20672403,82.426,82.351,19.39230625]
[1770995665791,18.20672403,82.409,82.328,19.39230625]
[1770995666190,164.80672403,82.425,82.328,19.39230625]
[1770995666488,10.9279,82.412,82.348,19.39230625]
[1770995666692,18.20672403,82.411,82.348,19.39230625]
[1770995667301,18.20672403,82.411,82.328,19.39230625]
[1770995667795,18.20672403,82.399,82.301,19.39230625]
[1770995668296,10.9315,82.385,82.33,10.9386]
[1770995668685,10.9315,82.385,82.323,19.39230625]
[1770995668885,18.20672403,82.385,82.323,19.39230625]
[1770995669089,18.20672403,82.385,82.301,19.39230625]
[1770995669390,18.20672403,82.399,82.301,19.39230625]
[1770995669587,18.20672403,82.419,82.342,19.39230625]
[1770995670096,18.20672403,82.397,82.326,10.9392]
[1770995670494,18.20672403,82.379,82.301,19.39230625]
[1770995670895,10.9332,82.371,82.317,10.9404]
[1770995671100,10.9332,82.371,82.301,19.39230625]
[1770995671498,10.9343,82.364,82.301,19.39230625]
[1770995671790,9.09603988,82.38,82.301,19.39230625]
[1770995671791,18.12693872,82.399,82.301,19.39230625]
[1770995671993,10.931,82.388,82.338,10.9376]
[1770995672188,18.12693872,82.399,82.334,19.11840556]
[1770995672595,10.9299,82.397,82.344,10.9367]
[1770995672991,18.12693872,82.399,82.334,19.11840556]
[1770995673192,10.9316,82.384,82.334,30.05650556]
[1770995673401,18.12693872,82.399,82.334,19.11840556]
[1770995674099,18.12693872,82.399,82.314,19.11840556]
[1770995674490,10.9329,82.374,82.324,10.9395]
[1770995674695,18.12693872,82.399,82.314,19.11840556]
[1770995674901,9.09603988,82.38,82.314,19.11840556]
[1770995675898,10.9339,82.367,82.317,10.9403]
[1770995676294,18.12693872,82.379,82.314,19.11840556]
[1770995677701,19.51101032,82.398,82.314,19.11840556]
[1770995677899,9.09603988,82.38,82.314,19.11840556]
[1770995678101,9.09603988,82.38,82.316,10.9404]
[1770995678394,19.51101032,82.379,82.314,19.11840556]
[1770995678612,10.9356,82.354,82.314,19.11840556]
[1770995678795,19.51101032,82.379,82.314,19.11840556]
[1770995679000,10.9335,82.37,82.321,10.9398]
[1770995679191,19.51101032,82.379,82.321,10.9398]
[1770995679390,9.09603988,82.36,82.291,18.43248424]
[1770995679591,19.51101032,82.379,82.309,10.9415]
[1770995679797,19.51101032,82.369,82.309,10.9415]
[1770995680197,19.51101032,82.369,82.317,10.9403]
[1770995680393,19.51101032,82.369,82.309,18.43248424]
[1770995680602,19.51101032,82.393,82.309,18.43248424]
[1770995680804,146.26,82.394,82.309,18.43248424]
[1770995680805,19.51101032,82.379,82.309,18.43248424]
[1770995681604,9.09603988,82.36,82.309,18.43248424]
[1770995682098,10.936,82.35,82.309,18.43248424]
[1770995682297,9.09603988,82.36,82.302,18.43248424]
[1770995683496,10.9362,82.349,82.304,10.942]
[1770995684002,19.51101032,82.349,82.283,18.43248424]
[1770995684502,19.51101032,82.349,82.228,181.74]
[1770995684503,19.51101032,82.329,82.262,18.43248424]
[1770995684709,10.9407,82.315,82.263,10.9475]
[1770995684908,19.51101032,82.329,82.262,18.43248424]
[1770995685301,10.9402,82.319,82.265,10.9472]
[1770995685505,19.51101032,82.329,82.265,10.9472]
[1770995685906,10.9415,82.309,82.255,10.9486]
[1770995686110,19.51101032,82.31,82.244,18.43248424]
[1770995686605,10.9425,82.302,82.245,18.43248424]
[1770995686799,9.09603988,82.3,82.245,18.43248424]
[1770995687403,19.51101032,82.329,82.25,18.43248424]
[1770995687703,19.51101032,82.309,82.25,18.43248424]
[1770995687909,9.09603988,82.31,82.23,18.43248424]
[1770995687910,10.9457,82.278,82.23,18.43248424]
[1770995688100,10.9457,82.278,82.211,18.43248424]
[1770995688303,19.51101032,82.289,82.211,18.43248424]
[1770995688609,19.51101032,82.268,82.181,18.43248424]
[1770995689209,19.51101032,82.287,82.206,18.43248424]
[1770995690018,19.51101032,82.269,82.206,18.43248424]
[1770995690505,19.51101032,82.269,82.186,18.43248424]
[1770995690704,19.51101032,82.249,82.164,18.43248424]
[1770995690909,19.51101032,82.249,82.168,18.43248424]
[1770995691307,9.09603988,82.27,82.181,18.43248424]
[1770995691509,10.9483,82.258,82.19,18.43248424]
[1770995692110,10.9483,82.258,82.192,18.43248424]
[1770995693018,19.51101032,82.31,82.221,18.43248424]
[1770995693309,19.51101032,82.31,82.245,18.43248424]
[1770995693513,9.09603988,82.33,82.245,18.43248424]
[1770995693703,19.51101032,82.331,82.245,18.43248424]
[1770995693909,19.51101032,82.331,82.261,18.43248424]
[1770995694111,19.51101032,82.329,82.231,18.43248424]
[1770995694307,19.51101032,82.319,82.231,18.43248424]
[1770995694512,19.51101032,82.319,82.23,9.09603988]
[1770995694513,19.51101032,82.319,82.241,18.43248424]
[1770995695111,10.9443,82.288,82.221,18.43248424]
[1770995695311,19.51101032,82.287,82.221,18.43248424]
[1770995695719,10.9437,82.293,82.233,18.43248424]
[1770995696221,10.945,82.283,82.233,18.43248424]
[1770995696418,19.51101032,82.299,82.233,18.43248424]
[1770995696916,10.9421,82.305,82.236,18.43248424]
[1770995697120,28.6070502,82.32,82.236,18.43248424]
[1770995697916,19.51101032,82.32,82.236,18.43248424]
[1770995698123,10.9394,82.325,82.251,18.43248424]
[1770995698320,19.51101032,82.324,82.251,18.43248424]
[1770995698521,10.9403,82.319,82.256,10.9485]
[1770995699018,9.09603988,82.32,82.256,10.9485]
[1770995699412,19.51101032,82.324,82.266,29.37958424]
[1770995699612,19.51101032,82.319,82.231,18.43248424]
[1770995700014,19.51101032,82.319,82.228,182.04]
[1770995700015,10.941,82.313,82.255,10.9486]
[1770995700217,19.51101032,82.339,82.255,18.43248424]
[1770995700617,18.96548136,82.319,82.232,19.34599659]
[1770995700822,9.09603988,82.31,82.232,19.34599659]
[1770995701020,20.03473988,82.33,82.266,30.29319659]
[1770995701214,20.03473988,82.33,82.24,9.09603988]
[1770995701215,20.03473988,82.33,82.267,19.34599659]
[1770995701426,18.96548136,82.339,82.267,19.34599659]
[1770995701619,18.96548136,82.338,82.275,30.29189659]
[1770995701922,18.96548136,82.338,82.275,19.34599659]
[1770995702223,18.96548136,82.319,82.255,19.34599659]
[1770995702426,18.96548136,82.319,82.231,19.34599659]
[1770995702830,10.9409,82.313,82.253,19.34599659]
[1770995703021,18.96548136,82.339,82.253,19.34599659]
[1770995703226,9.20548136,82.339,82.253,19.34599659]
[1770995703528,9.09603988,82.32,82.253,19.34599659]
[1770995703722,21.8696,82.36,82.253,19.34599659]
[1770995704024,10.942,82.305,82.254,10.9488]
[1770995704227,10.942,82.305,82.253,19.34599659]
[1770995704433,9.09603988,82.29,82.183,10.73202341]
[1770995704631,145.84,82.289,82.184,19.34599659]
[1770995704923,9.09603988,82.28,82.191,19.34599659]
[1770995705122,9.09603988,82.28,82.211,19.34599659]
[1770995705421,13.75958164,82.316,82.231,19.34599659]
[1770995705623,13.75958164,82.336,82.268,10.9468]
[1770995705814,13.75958164,82.336,82.268,19.34599659]
[1770995706226,13.75958164,82.336,82.286,10.9444]
[1770995706431,13.77308285,82.356,82.271,19.34599659]
[1770995706727,10.9353,82.356,82.294,19.34599659]
[1770995706929,13.77308285,82.377,82.294,19.34599659]
[1770995707224,9.09603988,82.38,82.294,19.34599659]
[1770995707225,9.09603988,82.36,82.294,19.34599659]
[1770995707419,13.59706027,82.359,82.294,19.34599659]
[1770995708128,9.09603988,82.37,82.294,19.34599659]
[1770995708425,9.09603988,82.39,82.301,19.34599659]
[1770995708724,10.9309,82.389,82.328,10.9389]
[1770995708934,13.61019274,82.422,82.329,19.34599659]
[1770995709231,9.09603988,82.43,82.341,19.34599659]
[1770995709423,13.62129866,82.444,82.359,19.34599659]
[1770995709730,13.62129866,82.444,82.361,19.34599659]
[1770995710122,13.62129866,82.444,82.371,19.34599659]
[1770995710426,13.00199181,82.429,82.341,19.34599659]
[1770995710827,9.09603988,82.44,82.357,19.34599659]
[1770995711028,9.09603988,82.44,82.361,19.34599659]
[1770995711431,13.00360375,82.45,82.372,19.34599659]
[1770995711729,9.09603988,82.46,82.372,19.34599659]
[1770995711920,12.70521465,82.472,82.38,9.09603988]
[1770995712124,145.66,82.494,82.381,19.34599659]
[1770995712125,12.70521465,82.459,82.381,19.34599659]
[1770995712325,12.70521465,82.459,82.384,19.34599659]
[1770995712727,9.09603988,82.48,82.384,19.34599659]
[1770995712921,12.7173626,82.482,82.412,19.34599659]
[1770995713634,21.68150122,82.48,82.412,19.34599659]
[1770995713935,12.58546134,82.459,82.386,19.34599659]
[1770995714131,10.9222,82.454,82.386,19.34599659]
[1770995714331,12.59584395,82.453,82.386,19.34599659]
[1770995715130,12.59726909,82.439,82.365,19.34599659]
[1770995715331,9.09603988,82.42,82.341,19.34599659]
[1770995715527,10.9246,82.437,82.341,19.34599659]
[1770995715733,12.59726909,82.439,82.356,19.34599659]
[1770995715936,9.09603988,82.42,82.356,19.34599659]
[1770995716640,12.19200566,82.418,82.356,19.34599659]
[1770995716833,9.09603988,82.4,82.336,19.34599659]
[1770995717227,12.19200566,82.418,82.336,19.34599659]
[1770995717432,12.35947889,82.438,82.341,19.34599659]
[1770995717631,9.09603988,82.44,82.361,19.34599659]
[1770995717832,9.09603988,82.45,82.372,19.34599659]
[1770995718028,12.35947889,82.456,82.372,19.34599659]
[1770995718230,12.35947889,82.456,82.381,19.34599659]
[1770995718544,12.37081284,82.449,82.381,19.34599659]
[1770995718728,12.37081284,82.449,82.361,19.34599659]
[1770995719042,12.37081284,82.487,82.364,19.34599659]
[1770995719338,9.09603988,82.44,82.364,19.34599659]
[1770995719536,9.09603988,82.46,82.383,19.34599659]
[1770995719726,9.09603988,82.48,82.383,19.34599659]
[1770995720134,9.09603988,82.48,82.409,19.34599659]
[1770995720435,12.55195108,82.479,82.409,19.34599659]
[1770995721741,12.58710875,82.459,82.387,19.34599659]
[1770995722342,12.59761567,82.439,82.366,19.34599659]
[1770995722929,10.9246,82.437,82.369,19.34599659]
[1770995723134,12.59761567,82.436,82.369,19.34599659]
[1770995723542,10.9254,82.431,82.369,19.34599659]
[1770995723743,169.8468,82.481,82.369,19.34599659]
[1770995723744,12.31787706,82.458,82.369,19.34599659]
[1770995724441,12.31787706,82.458,82.35,9.09235493]
[1770995724442,10.922,82.456,82.384,19.34599659]
[1770995725141,10.922,82.456,82.391,10.9305]
[1770995725339,10.9206,82.467,82.392,19.34599659]
[1770995725743,10.9239,82.442,82.372,19.34599659]
[1770995725943,9.09235493,82.44,82.372,19.34599659]
[1770995726435,9.09235493,82.44,82.376,19.34599659]
[1770995726633,12.69959473,82.459,82.376,19.34599659]
[1770995726833,9.09235493,82.46,82.39,19.34599659]
[1770995727039,12.70963562,82.479,82.39,19.34599659]
[1770995727339,12.71848027,82.459,82.39,19.34599659]
[1770995727536,10.924,82.442,82.39,19.34599659]
[1770995727733,169.814,82.497,82.37,19.34599659]
[1770995727734,9.09235493,82.44,82.37,19.34599659]
[1770995728138,10.9248,82.435,82.37,19.34599659]
[1770995728342,12.70100053,82.439,82.37,19.34599659]
[1770995728641,314.6863,82.472,82.349,19.34599659]
[1770995728642,12.70100053,82.419,82.349,19.34599659]
[1770995728832,10.9275,82.415,82.351,19.34599659]
[1770995729444,10.9275,82.415,82.356,10.9351]
[1770995729648,10.9289,82.404,82.351,19.34599659]
[1770995729941,12.63320663,82.399,82.331,19.34599659]
[1770995730938,9.09235493,82.38,82.312,10.941]
[1770995731138,12.63320663,82.399,82.312,18.53978455]
[1770995731338,10.9281,82.41,82.355,10.9353]
[1770995731538,9.09235493,82.44,82.356,18.53978455]
[1770995731739,12.59376716,82.464,82.361,18.53978455]
[1770995731950,12.59376716,82.464,82.381,18.53978455]
[1770995732444,9.09235493,82.47,82.397,18.53978455]
[1770995732649,12.59477819,82.489,82.397,18.53978455]
[1770995732850,10.9198,82.473,82.405,18.53978455]
[1770995733247,9.09235493,82.47,82.405,18.53978455]
[1770995733447,12.59477819,82.489,82.405,18.53978455]
[1770995733949,9.09235493,82.49,82.381,18.53978455]
[1770995733950,10.9224,82.453,82.381,18.53978455]
[1770995734256,12.67797687,82.452,82.381,18.53978455]
[1770995734647,10.9222,82.455,82.39,18.53978455]
[1770995735651,10.9222,82.455,82.394,10.9301]
[1770995735957,166.3919,82.502,82.394,10.9301]
[1770995735958,12.67854246,82.493,82.394,18.53978455]
[1770995736255,9.09235493,82.48,82.394,18.53978455]
[1770995736759,9.09235493,82.48,82.426,10.9258]
[1770995737359,9.09235493,82.48,82.359,36.53]
[1770995737360,12.72453352,82.479,82.402,19.03714947]
[1770995737857,12.72453352,82.459,82.381,19.03714947]
[1770995738958,10.9231,82.448,82.387,19.03714947]
[1770995739161,12.72453352,82.459,82.387,19.03714947]
[1770995739361,10.923,82.449,82.388,10.9309]
[1770995739561,10.923,82.449,82.389,19.03714947]
[1770995739859,12.72453352,82.459,82.389,19.03714947]
[1770995740160,10.9217,82.459,82.389,19.03714947]
[1770995740364,12.76938086,82.479,82.389,19.03714947]
[1770995740655,169.7041,82.551,82.38,9.09235493]
[1770995740656,9.09235493,82.5,82.424,19.03714947]
[1770995740851,12.76969283,82.502,82.424,19.03714947]
[1770995741046,9.09235493,82.52,82.424,19.03714947]
[1770995741254,12.76969283,82.519,82.449,19.03714947]
[1770995742155,12.78148474,82.541,82.449,19.03714947]
[1770995742353,21.87384249,82.54,82.47,10.9201]
[1770995742748,12.78148756,82.539,82.47,10.9201]
[1770995743256,10.9137,82.519,82.46,10.9214]
[1770995743556,12.78148756,82.539,82.449,19.03714947]
[1770995743756,10.912,82.532,82.476,10.9193]
[1770995743962,9.09235493,82.55,82.477,19.03714947]
[1770995744160,12.84574529,82.529,82.441,19.03714947]
[1770995744358,21.93810022,82.51,82.441,19.03714947]
[1770995744558,9.09235493,82.51,82.441,19.03714947]
[1770995744864,9.09235493,82.53,82.441,19.03714947]
[1770995745161,12.84577285,82.531,82.462,19.03714947]
[1770995745662,10.9113,82.537,82.462,19.03714947]
[1770995745861,9.09235493,82.52,82.462,19.03714947]
[1770995746174,10.9184,82.483,82.441,19.03714947]
[1770995746351,9.09235493,82.5,82.441,19.03714947]
[1770995746552,20.00855493,82.5,82.442,19.03714947]
[1770995746754,9.09235493,82.5,82.442,19.03714947]
[1770995747157,12.82975287,82.519,82.46,10.9214]
[1770995747363,169.6588,82.573,82.442,19.03714947]
[1770995747364,9.09235493,82.54,82.442,19.03714947]
[1770995747562,13.0043555,82.539,82.442,19.03714947]
[1770995747860,10.9121,82.531,82.469,19.03714947]
[1770995748060,13.0043555,82.539,82.469,19.03714947]
[1770995748061,9.09235493,82.56,82.469,19.03714947]
[1770995748262,22.09696274,82.56,82.469,19.03714947]
[1770995748562,13.004644,82.559,82.469,19.03714947]
[1770995749170,9.09235493,82.52,82.446,19.03714947]
[1770995749667,13.79375974,82.559,82.496,10.9167]
[1770995749868,13.79375974,82.559,82.497,19.03714947]
[1770995750265,10.9099,82.548,82.497,19.03714947]
[1770995750464,13.79375974,82.559,82.497,19.03714947]
[1770995750866,10.91,82.547,82.497,19.03714947]
[1770995751061,13.79388088,82.584,82.497,19.03714947]
[1770995751271,9.09235493,82.6,82.501,19.03714947]
[1770995751566,9.09235493,82.6,82.534,19.03714947]
[1770995751768,9.09235493,82.62,82.534,19.03714947]
[1770995752159,9.09235493,82.6,82.534,19.03714947]
[1770995752365,13.43864099,82.579,82.491,19.03714947]
[1770995752566,9.09235493,82.56,82.491,19.03714947]
[1770995752972,9.09235493,82.56,82.433,35.9558263]
[1770995752973,9.09235493,82.54,82.465,19.03714947]
[1770995753161,9.09235493,82.54,82.478,10.919]
[1770995753360,9.09235493,82.56,82.47,9.09235493]
[1770995753570,21.56369122,82.58,82.471,19.03714947]
[1770995753869,12.47133629,82.579,82.511,19.03714947]
[1770995754460,10.907,82.57,82.512,10.9145]
[1770995754660,10.907,82.57,82.511,19.03714947]
[1770995755070,12.47133629,82.579,82.52,10.9135]
[1770995755275,12.47133629,82.579,82.511,19.03714947]
[1770995755874,9.09235493,82.56,82.481,19.03714947]
[1770995756260,12.49299941,82.559,82.481,19.03714947]
[1770995756666,12.49299941,82.559,82.485,10.918]
[1770995756667,9.09235493,82.54,82.485,10.918]
[1770995756862,9.09235493,82.54,82.486,19.03714947]
[1770995757574,9.09235493,82.54,82.486,29.95504947]
[1770995757962,9.09235493,82.54,82.453,19.03714947]
[1770995758166,10.9129,82.525,82.453,19.03714947]
[1770995758675,10.9115,82.535,82.477,19.03714947]
[1770995758866,9.09235493,82.52,82.453,19.03714947]
[1770995759074,10.9139,82.517,82.467,10.9205]
[1770995759373,10.9139,82.517,82.453,19.03714947]
[1770995759870,143.6,82.562,82.436,178.6]
[1770995759871,19.79896591,82.569,82.471,19.03714947]
[1770995760073,28.89132084,82.55,82.471,19.03714947]
[1770995760275,30.71186591,82.525,82.453,19.03714947]
[1770995760568,19.79896591,82.525,82.453,19.03714947]
[1770995760769,10.9116,82.535,82.453,19.03714947]
[1770995760975,19.58943066,82.549,82.453,19.03714947]
[1770995761169,9.09235493,82.53,82.453,19.03714947]
[1770995761483,19.58943066,82.569,82.471,18.35202257]
[1770995761676,9.09235493,82.55,82.471,18.35202257]
[1770995761864,10.9108,82.541,82.487,10.9178]
[1770995762375,169.5889,82.607,82.471,18.35202257]
[1770995762376,9.09235493,82.56,82.471,18.35202257]
[1770995762576,9.09235493,82.54,82.471,18.35202257]
[1770995763078,10.912,82.532,82.475,10.9194]
[1770995763273,19.58943066,82.519,82.448,18.35202257]
[1770995763774,19.58943066,82.519,82.453,10.9223]
[1770995763971,19.58943066,82.519,82.448,18.35202257]
[1770995764173,9.09235493,82.5,82.445,10.9233]
[1770995764673,10.9179,82.487,82.436,10.9245]
[1770995764971,9.09235493,82.48,82.425,18.35202257]
[1770995765169,9.09235493,82.48,82.403,18.35202257]
[1770995765170,19.58943066,82.479,82.403,18.35202257]
[1770995765371,9.09235493,82.46,82.368,18.35202257]
[1770995765671,9.09235493,82.5,82.372,18.35202257]
[1770995765870,28.68178559,82.51,82.43,18.35202257]
[1770995766078,9.09235493,82.53,82.441,18.35202257]
[1770995766273,9.09235493,82.55,82.497,10.9165]
[1770995766475,9.09235493,82.57,82.484,18.35202257]
[1770995766774,19.58943066,82.577,82.52,10.9135]
[1770995767282,9.09235493,82.61,82.521,18.35202257]
[1770995767579,19.58943066,82.609,82.531,18.35202257]
[1770995768164,19.58943066,82.609,82.482,169.8435]
[1770995768165,19.58943066,82.609,82.534,18.35202257]
[1770995768369,9.09235493,82.63,82.541,18.35202257]
[1770995768770,9.09235493,82.63,82.562,18.35202257]
[1770995768973,19.58943066,82.649,82.562,18.35202257]
[1770995769170,9.09235493,82.63,82.562,18.35202257]
[1770995769378,19.58943066,82.618,82.54,18.35202257]
[1770995770174,10.9011,82.614,82.54,18.35202257]
[1770995770367,9.09235493,82.61,82.54,18.35202257]
[1770995770770,19.58943066,82.609,82.54,18.35202257]
[1770995770974,19.58943066,82.589,82.5,9.09235493]
[1770995771270,19.58943066,82.589,82.498,18.35202257]
[1770995771271,9.09235493,82.57,82.498,18.35202257]
[1770995771475,10.9076,82.565,82.5,10.916]
[1770995771672,19.58943066,82.568,82.498,18.35202257]
[1770995772082,19.58943066,82.568,82.499,10.9163]
[1770995772083,9.09235493,82.56,82.499,10.9163]
[1770995772279,9.09235493,82.58,82.499,18.35202257]
[1770995772480,9.09235493,82.6,82.511,18.35202257]
[1770995772679,19.58943066,82.619,82.531,18.35202257]
[1770995772874,19.58943066,82.619,82.562,10.9078]
[1770995773180,19.58943066,82.619,82.553,18.35202257]
[1770995773379,9.09235493,82.62,82.553,18.35202257]
[1770995773576,9.09235493,82.62,82.556,10.9087]
[1770995773776,19.58943066,82.642,82.556,10.9087]
[1770995773986,19.58943066,82.642,82.53,9.09235493]
[1770995773987,10.9053,82.582,82.53,18.35202257]
[1770995774276,19.58943066,82.599,82.53,18.35202257]
[1770995774481,9.09235493,82.58,82.501,18.35202257]
[1770995774682,10.9069,82.571,82.502,10.9158]
[1770995774877,19.58943066,82.579,82.501,18.35202257]
[1770995775578,9.09235493,82.56,82.501,18.35202257]
[1770995775773,9.09235493,82.57,82.501,18.35202257]
[1770995776078,9.09235493,82.57,82.503,10.9157]
[1770995776277,9.09235493,82.55,82.478,18.35202257]
[1770995776471,10.9082,82.561,82.501,10.916]
[1770995776670,10.9082,82.561,82.478,18.35202257]
[1770995777185,19.58943066,82.549,82.478,29.27102257]
[1770995777384,9.09235493,82.53,82.444,18.35202257]
[1770995777773,10.9124,82.529,82.456,10.9219]
[1770995777979,19.58943066,82.529,82.456,10.9219]
[1770995778183,19.58943066,82.529,82.444,18.35202257]
[1770995778184,9.09235493,82.51,82.444,18.35202257]
[1770995778376,9.09235493,82.51,82.454,10.9221]
[1770995778571,19.58943066,82.529,82.444,18.35202257]
[1770995778779,19.58943066,82.553,82.461,18.35202257]
[1770995778980,19.58943066,82.553,82.494,10.9169]
[1770995779183,9.09235493,82.56,82.483,18.35202257]
[1770995779388,19.58943066,82.577,82.483,18.35202257]
[1770995779575,9.09235493,82.54,82.46,9.09235493]
[1770995779776,19.58943066,82.539,82.461,18.35202257]
[1770995779983,10.9138,82.518,82.461,18.35202257]
[1770995780181,9.09235493,82.52,82.461,18.35202257]
[1770995780379,9.09235493,82.52,82.444,18.35202257]
[1770995780684,19.58943066,82.519,82.444,18.35202257]
[1770995780887,19.58943066,82.494,82.421,18.35202257]
[1770995781187,19.58943066,82.479,82.401,18.35202257]
[1770995781376,9.09235493,82.48,82.408,18.35202257]
[1770995781573,19.58943066,82.479,82.408,18.35202257]
[1770995781978,19.58943066,82.479,82.411,10.9279]
[1770995782179,19.58943066,82.479,82.412,18.35202257]
[1770995782584,10.9191,82.478,82.418,10.9269]
[1770995782779,19.58943066,82.479,82.412,18.35202257]
[1770995783188,19.58943066,82.479,82.39,10.9307]
[1770995783189,10.9229,82.449,82.39,10.9307]
[1770995783484,19.58943066,82.459,82.391,18.35202257]
[1770995783696,19.58943066,82.459,82.37,27.4443775]
[1770995783985,169.8305,82.489,82.37,18.35202257]
[1770995783986,19.58943066,82.449,82.37,18.35202257]
[1770995784387,19.58943066,82.449,82.371,10.9331]
[1770995785093,19.58943066,82.449,82.372,18.35202257]
[1770995785483,19.58943066,82.428,82.351,18.35202257]
[1770995785690,19.58943066,82.409,82.328,18.35202257]
[1770995785991,10.9258,82.428,82.358,18.35202257]
[1770995786392,19.58943066,82.429,82.358,18.35202257]
[1770995786693,19.58943066,82.429,82.347,10.9363]
[1770995786694,10.9284,82.408,82.347,10.9363]
[1770995786887,19.58943066,82.45,82.351,18.35202257]
[1770995787090,10.9254,82.431,82.36,10.9346]
[1770995787390,9.09242555,82.42,82.351,18.35202257]
[1770995787698,9.09242555,82.42,82.354,10.9355]
[1770995787994,19.58943066,82.431,82.355,18.35202257]
[1770995788190,10.9279,82.411,82.355,18.35202257]
[1770995788489,19.58943066,82.419,82.355,18.35202257]
[1770995789190,10.9257,82.428,82.356,18.35202257]
[1770995789390,19.58943066,82.44,82.356,18.35202257]
[1770995790088,10.9285,82.407,82.356,18.35202257]
[1770995790490,19.58943066,82.42,82.334,18.35202257]
[1770995790792,10.9285,82.407,82.334,18.35202257]
[1770995790989,19.64251113,82.406,82.334,18.35202257]
[1770995791498,19.64251113,82.401,82.3,20.32700299]
[1770995791791,142.58,82.436,82.3,20.32700299]
[1770995791792,19.64251113,82.389,82.3,20.32700299]
[1770995792997,10.9335,82.369,82.3,31.26960299]
[1770995793196,19.64251113,82.389,82.301,20.32700299]
[1770995793600,19.64251113,82.409,82.316,10.9405]
[1770995793794,19.64251113,82.409,82.301,20.32700299]
[1770995794295,19.64251113,82.409,82.315,20.32700299]
[1770995794792,19.64251113,82.386,82.319,20.32700299]
[1770995795295,10.9285,82.399,82.32,20.32700299]
[1770995795499,19.64251113,82.406,82.32,20.32700299]
[1770995795894,10.9283,82.4,82.335,10.9369]
[1770995796198,10.9283,82.4,82.32,20.32700299]
[1770995796898,19.64251113,82.399,82.32,20.32700299]
[1770995797196,19.10630784,82.429,82.32,20.32700299]
[1770995797693,10.9271,82.409,82.348,10.9351]
[1770995797889,10.9271,82.409,82.349,18.78736144]
[1770995798286,19.10630784,82.429,82.364,10.933]
[1770995798488,19.10630784,82.429,82.364,18.78736144]
[1770995798702,19.10630784,82.449,82.364,18.78736144]
[1770995799099,19.10630784,82.449,82.335,180.5]
[1770995799100,10.9249,82.426,82.367,18.78736144]
[1770995799304,19.10630784,82.469,82.367,18.78736144]
[1770995799501,19.10630784,82.469,82.371,18.78736144]
[1770995800096,19.10630784,82.469,82.341,170.1175]
[1770995800097,19.10630784,82.462,82.356,18.78736144]
[1770995800295,169.8131,82.489,82.356,18.78736144]
[1770995800296,19.10630784,82.449,82.356,18.78736144]
[1770995800498,19.10630784,82.419,82.335,18.78736144]
[1770995800698,19.10630784,82.389,82.301,18.78736144]
[1770995800993,19.10630784,82.389,82.304,18.78736144]
[1770995800994,10.9328,82.366,82.304,18.78736144]